bitfinex/quotes_ETHUSD_20220123
["timestamp","ask_amount","ask_price","bid_price","bid_amount"]
[1642978837418,0.09995661,2443.1,2441.9,0.50350972]
[1642978837619,0.09995661,2443.1,2442.0,2.6861181]
[1642978837818,0.09995661,2443.1,2442.1,0.491]
[1642978838024,0.09995661,2443.1,2442.2,0.05755825]
[1642978838218,0.09995661,2443.1,2442.2,0.6585638]
[1642978838618,0.09995661,2443.1,2442.2,0.9585638]
[1642978838824,5.661e-05,2443.1,2442.2,3.89873346]
[1642978839069,0.08797497,2443.5,2442.5,0.01277767]
[1642978839268,0.03723,2445.1,2442.5,0.01277767]
[1642978839269,1.322e-05,2444.1,2443.5,1.9]
[1642978839467,1.322e-05,2444.1,2444.0,0.01202624]
[1642978839668,0.09995661,2445.5,2444.1,3.8]
[1642978839872,0.09995661,2445.5,2444.6,0.01219142]
[1642978840172,0.09995661,2446.0,2445.1,3.8]
[1642978840372,0.09995661,2446.0,2445.8,0.01290251]
[1642978840573,0.09862139,2446.0,2445.9,6.191]
[1642978840967,7.8e-05,2446.0,2445.9,6.6585638]
[1642978841172,0.02932499,2446.6,2445.9,6.6585638]
[1642978841173,2.499e-05,2446.6,2446.1,0.03958588]
[1642978841372,0.01280458,2448.3,2446.4,1.9]
[1642978841571,0.13819997,2448.2,2446.6,0.04115449]
[1642978841768,0.13819997,2448.2,2446.7,0.491]
[1642978841769,0.01291305,2447.7,2446.7,0.491]
[1642978841967,0.01291305,2447.7,2446.8,0.01333248]
[1642978842192,0.23815658,2448.2,2446.9,0.6585638]
[1642978842473,0.23815658,2448.2,2447.1,0.01219395]
[1642978842474,0.09995661,2448.2,2447.1,0.01219395]
[1642978842719,0.09995661,2448.2,2447.2,0.7282914]
[1642978842912,0.09995661,2448.2,2447.4,0.07129049]
[1642978842913,0.1292816,2448.2,2447.4,0.07129049]
[1642978843120,0.04,2448.6,2447.8,1.9]
[1642978843318,0.04,2448.6,2448.0,0.02787141]
[1642978843516,0.04,2448.6,2448.1,0.6585638]
[1642978843717,0.04,2448.6,2447.5,0.1675638]
[1642978843914,0.04,2448.6,2447.7,0.491]
[1642978843915,0.01251856,2448.4,2447.7,0.491]
[1642978844117,0.01251856,2448.4,2447.4,0.6543]
[1642978844317,0.03723,2448.3,2447.4,0.6543]
[1642978844519,0.12408181,2448.3,2446.8,0.491]
[1642978844716,0.08685181,2448.2,2446.8,0.491]
[1642978844917,0.03723,2448.1,2446.8,0.491]
[1642978845116,0.01214706,2447.8,2446.8,0.491]
[1642978845317,0.04937706,2447.8,2446.2,3.13116966]
[1642978845518,0.04937706,2447.8,2446.1,2.64016966]
[1642978845519,1.0,2447.5,2446.1,2.64016966]
[1642978845721,0.12408181,2447.7,2446.1,2.64016966]
[1642978845915,0.08685181,2447.4,2446.0,1.1908]
[1642978846318,0.27639994,2447.3,2445.9,0.6585638]
[1642978846558,0.27639994,2447.3,2445.9,0.9585638]
[1642978846959,0.31362994,2447.3,2445.9,0.9585638]
[1642978847160,0.31362994,2447.3,2445.9,0.491]
[1642978848069,1.02285661,2447.8,2446.2,0.01221835]
[1642978848274,1.02285661,2447.8,2446.0,2.9708095]
[1642978848275,1.02285661,2447.8,2446.8,0.0121463]
[1642978848465,1.02285661,2447.8,2446.8,0.491]
[1642978849065,1.02285661,2447.8,2446.8,0.791]
[1642978849268,1.02285661,2447.8,2446.8,0.491]
[1642978849466,1.06008661,2447.8,2446.3,0.01210296]
[1642978849667,0.01240528,2447.5,2445.9,0.01290947]
[1642978850069,1.0,2447.3,2445.9,0.01290947]
[1642978850509,0.03723,2447.2,2445.3,0.00217188]
[1642978850710,1.0,2446.8,2445.2,2.65268662]
[1642978850912,1.0,2446.8,2445.2,0.01251696]
[1642978850913,0.3,2446.7,2445.2,0.01251696]
[1642978851109,0.3,2446.7,2445.0,2.64016966]
[1642978851110,0.03723,2446.6,2445.0,2.64016966]
[1642978851308,0.03723,2446.6,2444.7,9.29165331]
[1642978851309,3.17227366,2446.6,2444.7,9.29165331]
[1642978851507,0.0120172,2446.3,2444.7,9.29165331]
[1642978851707,1.0,2445.9,2444.7,9.28948143]
[1642978851912,3.33399897,2445.8,2444.7,9.28948143]
[1642978852312,3.63399897,2445.8,2444.7,9.28948143]
[1642978852515,3.63399897,2445.8,2444.7,9.22373201]
[1642978852516,0.00388031,2445.7,2444.7,9.22373201]
[1642978852714,1.0,2444.9,2444.7,9.22373201]
[1642978852913,0.03723,2444.8,2444.7,9.22373201]
[1642978853315,0.04399383,2445.1,2444.7,9.22373201]
[1642978853622,1.0,2446.0,2444.7,9.22373201]
[1642978853813,0.03723,2445.9,2444.7,9.22373201]
[1642978854466,0.03723,2445.9,2444.8,0.3]
[1642978854767,0.03723,2445.9,2444.7,9.22373201]
[1642978855067,2.95184165,2445.9,2444.7,9.22373201]
[1642978855372,0.27639994,2446.2,2445.0,0.01269688]
[1642978855773,3.94606988,2447.0,2445.0,0.18026068]
[1642978855774,0.03723,2446.8,2445.0,0.18026068]
[1642978855974,3.9339,2447.0,2445.6,0.01202712]
[1642978856175,3.9339,2447.0,2445.7,0.00369951]
[1642978856369,0.03723,2447.3,2445.7,1.63419951]
[1642978856370,0.02932499,2446.7,2445.7,1.63419951]
[1642978856569,0.02932499,2446.7,2445.7,2.2305]
[1642978856769,0.02932499,2446.7,2445.9,0.00686423]
[1642978856969,0.02932499,2446.7,2445.8,0.1675638]
[1642978857172,0.02932499,2446.7,2445.7,0.791]
[1642978859220,0.03723,2446.6,2444.9,3.21616069]
[1642978859424,0.03723,2446.6,2444.8,0.01289996]
[1642978859619,0.01298258,2446.3,2444.8,0.01289996]
[1642978859822,0.03723,2446.2,2444.8,0.01289996]
[1642978860018,1.03723,2446.2,2444.8,0.01289996]
[1642978860621,1.03723,2446.2,2444.8,2.73784034]
[1642978860821,1.03723,2446.5,2444.8,2.90540414]
[1642978861022,0.05864998,2446.7,2445.4,0.01235434]
[1642978861467,0.09587998,2446.7,2445.4,0.50335434]
[1642978861663,1.09587998,2446.7,2445.4,0.01235434]
[1642978862063,1.09587998,2446.7,2445.4,0.17991814]
[1642978862064,0.05864998,2446.7,2445.4,0.17991814]
[1642978862264,0.05864998,2446.7,2445.5,0.491]
[1642978862467,0.05864998,2446.7,2446.0,0.01285894]
[1642978862668,0.05864998,2446.7,2446.1,0.491]
[1642978863066,0.05864998,2446.7,2446.1,0.791]
[1642978863865,0.05864998,2446.7,2446.1,0.491]
[1642978864071,0.05864998,2446.7,2445.6,1.5140676]
[1642978864267,0.09587998,2446.7,2445.4,2.64016966]
[1642978864470,0.05864998,2446.7,2445.2,3.56537311]
[1642978865067,0.05864998,2446.7,2445.4,1.023173]
[1642978865304,0.05864998,2446.7,2445.6,0.01262372]
[1642978866503,0.05864998,2446.7,2445.6,2.71067132]
[1642978867307,0.05864998,2446.7,2445.6,0.01262372]
[1642978867507,0.05864998,2446.7,2445.6,2.90556265]
[1642978867909,0.05864998,2446.7,2445.6,0.18018752]
[1642978868107,0.05864998,2446.7,2445.6,3.19998729]
[1642978868309,0.05864998,2446.7,2445.1,4.85408816]
[1642978868519,0.35864998,2446.7,2445.0,2.64016966]
[1642978868710,0.05864998,2446.7,2444.9,0.01247438]
[1642978869009,1.0,2446.3,2444.9,0.01247438]
[1642978869218,0.03723,2446.2,2444.9,0.01247438]
[1642978869413,0.03723,2446.2,2444.8,2.64016966]
[1642978869414,0.04930735,2446.2,2444.8,2.64016966]
[1642978869813,0.09995662,2446.4,2444.9,0.1675638]
[1642978870315,0.03723,2446.3,2444.8,2.64016966]
[1642978870518,0.03723,2446.3,2444.7,13.05599464]
[1642978870714,0.03723,2446.3,2444.7,12.88736167]
[1642978870917,0.03723,2446.3,2444.7,11.86390167]
[1642978871118,1.0,2445.8,2444.7,9.22373201]
[1642978872116,1.03723,2445.8,2444.7,9.22373201]
[1642978872721,0.05864998,2445.9,2444.9,0.01238362]
[1642978873220,2.88264453,2445.9,2444.9,0.01238362]
[1642978873417,0.05864998,2445.9,2444.9,0.01238362]
[1642978874521,0.05864998,2445.9,2444.8,0.3]
[1642978874720,0.05864998,2445.9,2444.7,9.22373201]
[1642978874922,0.03723,2445.8,2444.8,0.3]
[1642978875521,1.03723,2445.8,2444.8,0.3]
[1642978875923,0.1586066,2445.9,2444.7,9.22373201]
[1642978876122,0.1586066,2445.9,2444.8,0.3]
[1642978876557,0.18793159,2445.9,2445.0,1.0235758]
[1642978876766,0.18793159,2445.9,2445.0,1.02202611]
[1642978876961,0.18793159,2445.9,2445.1,0.3]
[1642978877164,0.18793159,2445.9,2445.0,1.02202611]
[1642978877364,0.18793159,2445.9,2444.7,11.27088351]
[1642978877567,0.03723,2445.8,2444.8,0.3]
[1642978877966,0.18793159,2445.9,2444.8,0.3]
[1642978878168,0.18793159,2445.9,2445.1,1.0235702]
[1642978878468,0.18793159,2445.9,2445.1,3.3704002]
[1642978878666,0.18793159,2445.9,2445.1,3.6704002]
[1642978878867,0.18793159,2445.9,2445.1,3.3704002]
[1642978879467,0.18793159,2445.9,2445.3,1.0234276]
[1642978879670,0.18793159,2445.9,2445.4,0.3]
[1642978881611,0.1586066,2445.9,2445.4,0.3]
[1642978881814,0.1586066,2445.9,2445.3,1.0234276]
[1642978881815,0.15769707,2445.9,2445.3,1.0234276]
[1642978882010,0.15769707,2445.9,2445.1,4.0936917]
[1642978882409,0.15769707,2445.9,2445.1,6.1406956]
[1642978883517,0.15769707,2445.9,2445.2,0.3]
[1642978884165,0.15769707,2445.9,2445.4,1.0234289]
[1642978884368,0.15769707,2445.9,2445.5,2.65847638]
[1642978884566,0.15769707,2445.9,2445.7,0.03528958]
[1642978884763,0.00237786,2446.3,2445.8,1.9]
[1642978884967,0.00237786,2446.3,2445.9,0.01455245]
[1642978885164,0.00237786,2446.3,2446.0,1.02313]
[1642978885364,0.00237786,2446.3,2446.1,0.00988188]
[1642978886266,0.00118893,2446.3,2446.1,0.00988188]
[1642978886564,0.00118893,2446.3,2446.0,3.36939]
[1642978886968,0.00118893,2446.3,2446.1,1.02311]
[1642978887570,0.20738532,2446.4,2446.2,0.00905406]
[1642978887824,0.20738532,2446.4,2446.2,1.0229412]
[1642978888024,0.20738532,2446.4,2446.2,1.3229412]
[1642978889229,0.08948493,2446.8,2446.4,1.9]
[1642978889429,0.08948493,2446.8,2446.4,4.9684903]
[1642978889634,0.08948493,2446.8,2446.5,0.01790469]
[1642978889828,0.08948493,2446.8,2446.5,1.04072549]
[1642978890032,0.08948493,2446.8,2445.8,3.06898]
[1642978890232,0.088296,2446.8,2445.6,11.38308927]
[1642978890432,0.088296,2446.8,2445.8,1.02326]
[1642978890630,0.088296,2446.8,2446.0,1.02321]
[1642978891468,0.08710707,2446.8,2446.0,3.3695969]
[1642978891669,0.08710707,2446.8,2446.2,1.02313]
[1642978892368,0.08710707,2446.8,2446.2,1.32313]
[1642978892576,0.08710707,2446.8,2446.4,1.02304]
[1642978892781,0.08710707,2446.8,2446.5,2.63198928]
[1642978892978,0.05767507,2446.9,2446.7,0.1675638]
[1642978893379,0.05648614,2446.9,2446.7,0.1675638]
[1642978894680,0.05767507,2447.2,2446.9,1.9]
[1642978894881,0.05767507,2447.2,2446.9,5.5455292]
[1642978895079,0.05767507,2447.2,2447.0,0.3]
[1642978895312,0.05767507,2447.2,2447.0,0.6]
[1642978895513,0.05648614,2447.2,2447.0,0.6]
[1642978896512,0.029432,2447.2,2447.0,0.6]
[1642978897515,0.03062093,2447.2,2447.0,1.6227594]
[1642978897720,0.03062093,2447.2,2447.0,1.3227594]
[1642978898519,0.00356679,2447.2,2447.0,1.3227594]
[1642978898967,0.00356679,2447.2,2447.1,0.1675638]
[1642978899168,0.00356679,2447.2,2447.0,1.3227594]
[1642978900571,0.038296,2447.7,2446.8,1.0229479]
[1642978900772,0.038296,2447.7,2446.8,0.3]
[1642978900970,0.038296,2447.7,2446.5,6.1369663]
[1642978901172,1.038296,2447.7,2446.5,6.1369663]
[1642978901370,0.02824307,2447.2,2446.5,6.1369663]
[1642978901574,0.02824307,2447.2,2446.5,5.1139863]
[1642978901973,0.02824307,2447.2,2446.6,1.02292]
[1642978902175,0.02824307,2447.2,2446.6,1.32292]
[1642978902582,0.02824307,2447.2,2446.6,1.32173107]
[1642978903021,0.02824307,2447.2,2446.8,1.02292]
[1642978903621,0.038296,2447.2,2446.8,1.02292]
[1642978904219,0.038296,2447.2,2446.8,2.0458468]
[1642978904619,0.038296,2447.2,2446.5,5.1139863]
[1642978904620,1.061336,2447.2,2446.5,5.1139863]
[1642978904821,1.061336,2447.2,2446.6,0.3]
[1642978905222,1.061336,2447.2,2446.5,5.1139863]
[1642978905623,1.061336,2447.2,2446.6,0.3]
[1642978905824,1.061336,2447.2,2446.8,1.02301]
[1642978906464,1.07952614,2447.2,2446.8,1.02301]
[1642978906664,1.07952614,2447.2,2446.8,0.63373079]
[1642978907064,1.07952614,2447.2,2446.8,1.65673059]
[1642978907466,1.08957907,2447.2,2446.8,1.65673059]
[1642978908072,0.06653907,2447.2,2446.9,0.3]
[1642978908273,0.06653907,2447.2,2447.0,2.0455831]
[1642978908474,0.038296,2447.2,2447.0,2.0455831]
[1642978909473,0.038296,2447.2,2447.0,2.01734003]
[1642978910070,0.97378755,2447.8,2447.2,1.02279]
[1642978910314,0.97378755,2447.8,2447.3,1.022781]
[1642978911017,0.13819997,2447.9,2447.3,1.022781]
[1642978911217,0.13819997,2448.0,2447.4,2.67864746]
[1642978911418,8.75664661,2448.0,2447.4,1.0225547]
[1642978911617,0.13819997,2448.0,2447.4,1.0225547]
[1642978912017,0.13819997,2448.0,2447.5,2.0451285]
[1642978912317,0.13819997,2448.0,2447.6,1.02251]
[1642978912520,0.13819997,2448.0,2447.6,2.045004]
[1642978912720,0.13819997,2448.0,2447.2,2.0455235]
[1642978912920,0.17542997,2448.0,2446.6,2.4149]
[1642978913125,0.17542997,2448.0,2447.0,2.045708]
[1642978913522,1.02274,2447.9,2447.2,1.0228676]
[1642978913969,1.02274,2447.9,2447.2,1.3228676]
[1642978914174,1.02274,2447.9,2447.3,1.02271]
[1642978914373,1.02274,2447.9,2447.4,1.0227]
[1642978914572,1.02274,2447.9,2447.4,1.64824446]
[1642978914972,1.02274,2447.9,2447.2,4.0907993]
[1642978916373,1.02274,2447.9,2447.3,1.02276]
[1642978916773,1.02274,2447.9,2447.4,1.0227694]
[1642978918925,1.02274,2447.9,2447.6,1.02272]
[1642978919128,0.13819997,2448.0,2447.6,2.0453764]
[1642978919528,7.43,2448.1,2447.6,2.3453764]
[1642978919832,8.64560619,2448.6,2447.8,1.9]
[1642978919833,0.04,2448.6,2447.8,1.9]
[1642978920034,0.04,2448.6,2448.0,1.02207]
[1642978920328,0.04,2449.2,2448.1,5.0604879]
[1642978920526,0.04,2449.2,2448.2,0.1675638]
[1642978920728,0.04,2449.2,2448.2,0.7675638]
[1642978921330,0.04,2449.2,2448.4,1.0221153]
[1642978921566,0.04,2449.2,2448.5,3.36624]
[1642978921770,0.0001,2449.3,2448.6,0.1675638]
[1642978921972,0.0001,2449.3,2448.7,0.491]
[1642978922168,0.0001,2449.3,2448.8,3.1855264]
[1642978922372,0.04,2449.8,2449.1,1.021659]
[1642978922674,8.64560619,2449.8,2449.1,2.67079391]
[1642978922870,8.64560619,2449.8,2449.1,2.8113138]
[1642978923069,0.04,2449.8,2449.2,3.21029125]
[1642978923271,0.04,2449.8,2449.3,1.02188]
[1642978923674,0.04,2449.8,2449.3,1.32188]
[1642978924475,0.04,2449.8,2449.3,3.0657151]
[1642978924676,0.04,2449.8,2449.3,3.3657151]
[1642978924874,0.04,2449.8,2449.3,3.0657151]
[1642978925074,0.04,2449.8,2449.3,3.3657151]
[1642978926122,1.02204,2449.7,2449.3,3.0657151]
[1642978926326,1.05927,2449.7,2449.1,2.04375]
[1642978926524,1.02204,2449.7,2449.1,2.04375]
[1642978927624,1.02204,2449.7,2449.3,2.044]
[1642978927823,2.08431,2449.8,2449.3,4.5854253]
[1642978927824,0.04,2449.8,2449.3,4.5854253]
[1642978928025,0.04,2449.8,2449.4,1.32169]
[1642978928228,0.04,2449.8,2449.5,0.491]
[1642978928426,0.04,2450.4,2449.5,0.491]
[1642978929077,0.04,2450.4,2449.7,2.9216]
[1642978929277,0.04,2450.4,2449.8,0.9585638]
[1642978929485,0.04,2450.4,2449.8,3.86309048]
[1642978929676,0.04,2450.9,2449.8,1.2585638]
[1642978929879,0.04,2450.9,2449.8,0.791]
[1642978930079,0.04,2450.9,2449.9,5.83627488]
[1642978930080,7.47,2450.9,2449.9,5.83627488]
[1642978930381,12.39290948,2451.4,2449.9,5.83627488]
[1642978930382,0.007,2451.4,2450.2,0.0125298]
[1642978930584,0.007,2451.4,2450.3,0.491]
[1642978930780,8.6005575,2451.9,2450.5,3.8]
[1642978930980,0.00274802,2451.9,2450.5,2.2]
[1642978931180,0.04035807,2451.6,2450.8,1.02093]
[1642978931384,0.04035807,2451.6,2450.8,1.51193]
[1642978931582,8.59780948,2452.0,2450.9,0.3]
[1642978931781,0.04320018,2452.1,2451.0,3.26309048]
[1642978931980,0.04206334,2451.9,2451.1,0.00881877]
[1642978932183,0.04,2452.3,2451.2,2.391]
[1642978932381,0.04,2452.3,2451.4,1.02078]
[1642978932583,0.04,2452.3,2451.7,1.02084]
[1642978932825,0.04,2452.3,2451.7,1.1884038]
[1642978933025,4.0241,2452.8,2451.8,0.791]
[1642978933026,0.03274802,2452.8,2451.8,0.791]
[1642978933225,0.03274802,2452.8,2451.8,0.741]
[1642978934031,0.03274802,2452.8,2452.1,1.0208]
[1642978934730,0.00261513,2452.7,2452.0,2.04143]
[1642978935134,0.007,2452.1,2451.7,2.0416833]
[1642978935333,0.007,2452.1,2451.6,3.0628133]
[1642978935334,0.007,2452.1,2451.2,2.0422]
[1642978935531,0.007,2452.1,2451.3,11.18957922]
[1642978936331,0.007,2452.1,2451.4,5.66024982]
[1642978936581,2.04469513,2452.7,2451.7,0.0120627]
[1642978936582,0.00261513,2452.7,2451.7,0.0120627]
[1642978936775,0.00261513,2452.7,2451.8,0.491]
[1642978936973,0.01296931,2453.6,2452.0,3.8]
[1642978937176,3.7109,2453.7,2452.4,0.01277504]
[1642978937376,3.7109,2453.7,2452.6,1.02034]
[1642978937578,0.03723,2453.8,2452.9,2.0405779]
[1642978937975,0.03723,2453.8,2453.0,0.3]
[1642978938577,0.03723,2453.8,2453.0,0.18960393]
[1642978941243,0.15072921,2454.2,2453.2,1.0202102]
[1642978941444,0.13819997,2454.2,2453.2,1.5112102]
[1642978941642,0.03723,2454.1,2453.3,0.3]
[1642978942042,0.03723,2454.1,2453.1,2.0404204]
[1642978942245,0.01258286,2454.0,2452.7,2.04088]
[1642978942445,0.01258286,2454.0,2452.2,11.18543896]
[1642978942446,0.03723,2453.9,2452.2,11.18543896]
[1642978942645,0.01287586,2453.4,2452.2,12.20617896]
[1642978942844,0.03723,2453.3,2452.2,12.20617896]
[1642978943043,0.03723,2453.3,2452.3,2.0412382]
[1642978943844,0.03723,2453.3,2452.4,1.0206271]
[1642978944073,7.73,2453.7,2452.7,2.0407607]
[1642978944074,7.43,2453.7,2452.7,2.0407607]
[1642978944276,0.15046168,2454.3,2452.9,3.06048]
[1642978944479,0.15046168,2454.3,2453.0,0.491]
[1642978944676,0.08819997,2454.2,2453.0,1.448]
[1642978944875,0.08819997,2454.2,2453.0,1.748]
[1642978944876,0.03723,2454.1,2453.0,1.748]
[1642978945475,0.08819997,2454.2,2453.0,1.748]
[1642978945874,0.08819997,2454.2,2453.2,1.0201492]
[1642978946075,0.08819997,2454.2,2453.2,1.5111492]
[1642978946277,0.08819997,2454.2,2453.4,1.02013]
[1642978946475,0.08819997,2454.2,2453.4,0.64934901]
[1642978946676,0.08819997,2454.2,2453.5,0.3]
[1642978947582,7.43,2454.4,2453.8,1.02]
[1642978947821,7.43,2454.4,2453.9,0.491]
[1642978948316,3.9421,2454.7,2453.9,0.491]
[1642978948522,0.01250562,2455.0,2454.1,1.01974]
[1642978948722,7.43,2455.5,2454.2,0.491]
[1642978948923,7.43,2455.5,2454.2,1.7183]
[1642978949123,7.43,2455.5,2454.3,1.90946292]
[1642978949323,7.43,2455.5,2454.4,0.491]
[1642978949523,2.57786306,2455.4,2454.5,2.03896]
[1642978949728,7.43,2455.5,2454.5,2.03896]
[1642978949922,7.43,2455.5,2454.6,0.3]
[1642978950525,1.0,2455.4,2454.8,1.01947]
[1642978951025,1.03723,2455.4,2454.6,0.3]
[1642978951226,1.03723,2455.4,2454.3,0.491]
[1642978952113,7.44296108,2455.5,2454.3,0.491]
[1642978952114,0.01296108,2455.5,2454.3,0.491]
[1642978952323,2.65509306,2455.8,2454.6,1.0196132]
[1642978952324,0.04,2455.8,2454.6,1.0196132]
[1642978952527,0.04,2455.8,2454.8,0.01214103]
[1642978952817,0.04,2455.8,2454.9,2.5296868]
[1642978953018,0.04,2455.8,2455.0,0.3]
[1642978953019,7.47,2455.8,2455.0,0.3]
[1642978953217,7.47,2455.8,2455.1,0.491]
[1642978953423,7.48202673,2456.3,2455.2,2.68532178]
[1642978953621,7.47,2456.3,2455.3,0.491]
[1642978953821,7.47,2456.3,2455.4,3.05488454]
[1642978954018,0.04,2456.3,2455.5,0.491]
[1642978954217,0.04,2456.3,2455.5,0.31403461]
[1642978954419,0.04,2456.3,2455.6,1.01919]
[1642978954633,3.75818723,2456.9,2455.9,0.01278226]
[1642978954634,0.03723,2456.7,2455.9,0.01278226]
[1642978954833,0.04,2456.9,2456.0,2.39919068]
[1642978955023,1.36168095,2457.4,2456.1,0.30664068]
[1642978955226,1.36168095,2457.4,2456.2,0.491]
[1642978955428,1.36168095,2457.4,2456.2,0.791]
[1642978955731,7.0867267,2457.9,2456.6,1.01867]
[1642978955932,7.0867267,2457.9,2456.9,1.0186234]
[1642978955933,7.43,2457.7,2456.9,1.0186234]
[1642978956131,7.43,2457.7,2457.0,2.03725]
[1642978956935,0.01221076,2457.5,2455.6,4.0752519]
[1642978957132,0.04,2457.9,2456.0,1.0191288]
[1642978957133,7.43,2457.1,2456.0,1.0191288]
[1642978957340,0.01269141,2456.9,2456.0,1.0191288]
[1642978957532,7.43,2457.1,2456.0,1.0191288]
[1642978957931,7.43,2457.1,2456.2,1.01905]
[1642978958131,1.0,2457.3,2456.2,1.01905]
[1642978958331,0.21282719,2457.0,2456.2,0.86905]
[1642978958986,0.2025605,2457.0,2456.2,0.86905]
[1642978959181,1.55013,2457.9,2456.4,2.03769]
[1642978959182,7.43,2457.6,2456.4,2.03769]
[1642978959381,3.53305478,2457.8,2456.7,1.0188073]
[1642978959382,2.81540424,2457.8,2456.7,1.0188073]
[1642978959681,1.0,2457.5,2456.7,1.0188073]
[1642978959887,2.89557688,2457.6,2456.7,1.0188073]
[1642978960081,1.0,2457.5,2456.5,2.0376145]
[1642978960283,1.0,2457.5,2456.6,0.3]
[1642978960481,0.95,2457.5,2456.6,0.3]
[1642978961085,2.75312337,2457.4,2455.7,3.20666]
[1642978961286,2.75312337,2457.4,2455.5,3.05701]
[1642978961287,2.75312337,2457.4,2455.5,4.0761939]
[1642978961484,2.75312337,2457.4,2455.6,4.3752519]
[1642978962288,1.0,2457.3,2455.6,4.3752519]
[1642978962491,3.37998474,2457.2,2455.6,4.3752519]
[1642978962723,3.37998474,2457.2,2455.9,2.03809]
[1642978962924,1.0,2457.1,2455.9,2.03809]
[1642978963125,1.0,2457.3,2455.9,2.03809]
[1642978963324,3.14903193,2457.2,2455.9,2.03809]
[1642978963524,1.0,2457.1,2455.9,2.03809]
[1642978963924,2.80420035,2457.0,2455.9,2.03809]
[1642978964130,1.0,2456.9,2455.9,2.03809]
[1642978964731,3.24116502,2457.3,2455.9,2.03809]
[1642978964933,1.0,2457.2,2455.9,2.03809]
[1642978965138,2.94660571,2457.1,2455.9,2.03809]
[1642978965332,2.78793598,2457.1,2455.9,2.03809]
[1642978965533,1.0,2457.0,2455.9,2.03809]
[1642978965734,1.0192,2457.4,2455.5,4.0761939]
[1642978965735,0.73273323,2455.8,2455.5,3.05701]
[1642978967989,3.323e-05,2455.8,2455.5,3.05701]
[1642978968193,34.63486872,2457.6,2455.5,3.05701]
[1642978968194,7.43,2457.1,2455.8,23.95]
[1642978968394,7.43,2457.4,2456.2,0.01287694]
[1642978969489,7.43,2457.4,2456.4,1.01893]
[1642978969989,7.43,2457.4,2456.4,1.31893]
[1642978970228,7.43,2457.4,2456.4,3.89751874]
[1642978970435,7.43,2457.4,2456.5,1.01865]
[1642978970627,7.43,2457.4,2456.9,1.01857]
[1642978971030,3.7128,2457.8,2456.9,1.01857]
[1642978971031,0.04,2457.9,2456.9,1.31857]
[1642978971228,0.04,2457.9,2457.1,2.03709]
[1642978971429,7.43,2458.1,2457.1,2.03709]
[1642978971627,7.43,2458.1,2457.1,2.33709]
[1642978971828,7.43,2458.1,2457.1,1.31853]
[1642978972133,7.45858874,2458.2,2457.1,1.31853]
[1642978972329,7.45858874,2458.2,2457.1,3.3554508]
[1642978972533,7.45858874,2458.2,2457.2,2.03709]
[1642978972730,0.02858874,2458.2,2457.2,2.03709]
[1642978972934,0.02858874,2458.2,2457.3,0.3]
[1642978973136,14.83709273,2460.3,2457.6,27.95]
[1642978973343,0.03296277,2460.9,2457.6,27.95]
[1642978973344,32.72317212,2461.8,2459.0,6.132]
[1642978973547,32.72317212,2461.8,2460.2,0.01298722]
[1642978973548,9.80181153,2461.8,2460.2,0.01298722]
[1642978973733,0.7562097,2462.9,2460.9,0.01291102]
[1642978973734,0.7324097,2462.9,2460.9,0.01291102]
[1642978974002,1.78196872,2464.1,2460.3,0.79049545]
[1642978974003,6.0,2463.6,2461.2,0.07234172]
[1642978974190,2.05573074,2465.7,2462.6,6.132]
[1642978974191,0.5,2465.6,2462.6,6.132]
[1642978974390,0.5,2465.6,2463.1,0.0122515]
[1642978974391,0.28352381,2465.6,2463.1,0.0122515]
[1642978974591,0.28352381,2465.6,2463.4,1.015666]
[1642978974786,0.28352381,2465.6,2463.7,0.01290321]
[1642978974991,6.0,2464.5,2463.8,0.73306644]
[1642978975186,6.0,2464.5,2463.8,0.86550264]
[1642978975392,1.13622892,2466.7,2464.0,0.03424952]
[1642978975594,0.5,2466.2,2464.4,0.01262809]
[1642978975786,0.5,2466.2,2464.5,0.491]
[1642978975988,0.01772779,2466.7,2464.6,2.87858874]
[1642978976190,0.01772779,2466.7,2464.7,0.6585638]
[1642978976191,2.779e-05,2466.7,2464.7,0.6585638]
[1642978976398,16.2089571,2468.9,2465.0,0.01261824]
[1642978976702,16.2089571,2468.9,2464.8,7.2]
[1642978976703,19.47103224,2468.9,2466.5,0.0087931]
[1642978976898,0.02042806,2469.4,2467.7,5.0]
[1642978977097,0.04717766,2470.6,2468.4,6.132]
[1642978977291,0.04717766,2470.6,2468.0,0.00953568]
[1642978977292,22.71454149,2472.2,2468.5,42.83126918]
[1642978977503,21.27494887,2472.2,2468.6,46.75044538]
[1642978977734,1.36168095,2473.6,2470.0,0.02087821]
[1642978977735,1.0,2473.1,2470.0,0.02087821]
[1642978977936,1.0,2473.1,2469.9,9.88963596]
[1642978977937,1.36168095,2473.6,2470.2,0.01106506]
[1642978978140,1.36168095,2473.6,2470.4,0.02813717]
[1642978978332,1.36168095,2473.6,2470.1,0.86559194]
[1642978978333,1.36168095,2473.6,2470.8,0.01273722]
[1642978978637,1.18733351,2473.5,2471.0,0.00400574]
[1642978978834,1.18733351,2473.5,2471.6,0.01289286]
[1642978979039,0.165,2473.4,2471.7,0.491]
[1642978979237,2.55,2473.3,2471.7,0.41625]
[1642978979542,1.36168095,2473.6,2471.7,0.41625]
[1642978979543,1.35817997,2473.6,2472.2,6.132]
[1642978979741,0.03943175,2473.6,2472.0,0.491]
[1642978979937,0.03943175,2473.6,2472.2,1.713e-05]
[1642978979938,2.6,2473.5,2472.2,1.713e-05]
[1642978980147,0.0125675,2473.4,2472.2,1.713e-05]
[1642978980341,0.0125675,2473.4,2471.1,1.81864874]
[1642978980342,0.491,2473.4,2471.1,1.81864874]
[1642978980545,0.57785181,2473.4,2471.1,1.57935505]
[1642978980743,0.57785181,2473.4,2470.6,0.01207663]
[1642978980744,4.94990633,2472.8,2470.6,0.01207663]
[1642978980942,0.165,2472.7,2470.6,7.663e-05]
[1642978981143,0.25185181,2472.7,2470.6,7.663e-05]
[1642978981342,0.25185181,2472.7,2469.8,0.1296]
[1642978981343,0.01291243,2472.5,2469.8,0.1296]
[1642978981595,0.01291243,2472.5,2470.0,6.57e-05]
[1642978981596,0.76359609,2472.4,2470.0,6.57e-05]